bitfinex/quotes_SOLUSD_20250902
["timestamp","ask_amount","ask_price","bid_price","bid_amount"]
[1756842525914,0.06,205.97,205.96,5.62705123]
[1756842527083,0.06,205.97,205.96,0.67]
[1756842527287,0.06,205.97,205.96,10.48236294]
[1756842527513,1e-08,206.0,205.99,26.0]
[1756842527807,1e-08,206.0,205.99,33.92502334]
[1756842528011,1e-08,206.0,205.99,38.5428102]
[1756842528605,1e-08,206.0,205.99,38.96929491]
[1756842528916,1239.32,206.13,206.03,26.0]
[1756842529095,1239.32,206.13,206.08,7.92502334]
[1756842529290,1239.32,206.13,206.1,4.85201358]
[1756842529291,1200.0,206.13,206.1,4.85201358]
[1756842529494,1200.0,206.13,206.1,5.52201358]
[1756842529986,1200.0,206.13,206.11,0.67]
[1756842530190,1200.0,206.13,206.12,26.0]
[1756842530388,1200.0,206.13,206.12,34.59502334]
[1756842530916,1200.0,206.13,206.12,26.0]
[1756842531213,1200.0,206.13,206.12,33.92502334]
[1756842531515,1200.0,206.13,206.12,38.77656613]
[1756842531905,1200.0,206.13,206.1,7.92502334]
[1756842532317,1200.0,206.13,206.1,8.59502334]
[1756842532514,1200.0,206.13,206.1,12.77703692]
[1756842533013,1200.68,206.13,206.09,4.85224901]
[1756842533316,1200.68,206.13,206.09,12.77727235]
[1756842533698,1200.68,206.13,206.08,26.0]
[1756842533699,1200.68,206.13,206.08,33.92502334]
[1756842533901,1200.68,206.13,206.08,38.77735755]
[1756842534205,1200.0,206.13,206.1,7.92502334]
[1756842534398,1200.74,206.13,206.1,7.92502334]
[1756842534904,1200.06,206.13,206.1,7.92502334]
[1756842535304,1200.74,206.13,206.1,12.77701909]
[1756842535507,1200.74,206.13,206.1,4.85199575]
[1756842535902,1200.06,206.13,206.08,33.92502334]
[1756842536110,0.68,206.12,206.08,4.85246955]
[1756842537406,0.68,206.11,206.07,4.85271994]
[1756842537716,1207.98502334,206.13,206.07,4.85271994]
[1756842537717,1208.66502334,206.13,206.07,12.77774328]
[1756842537905,1208.66502334,206.13,206.07,4.85271994]
[1756842538107,1208.66502334,206.13,206.07,12.77774328]
[1756842538510,1200.74,206.13,206.08,7.92502334]
[1756842538713,0.68,206.12,206.08,7.92502334]
[1756842539510,0.68,206.11,206.07,7.92502334]
[1756842539718,0.68,206.1,206.07,7.92502334]
[1756842540424,1200.06,206.13,206.05,4.85318375]
[1756842540425,8.60502334,206.09,206.05,4.85318375]
[1756842540603,8.60502334,206.09,206.05,30.85318375]
[1756842540604,0.68,206.08,206.05,30.85318375]
[1756842540803,7.92502334,206.1,206.05,38.77820709]
[1756842541010,38.54,206.1,206.05,39.44820709]
[1756842541209,0.68,206.09,206.05,39.44820709]
[1756842541418,0.68,206.09,206.05,12.77809436]
[1756842541719,0.68,206.08,206.05,4.85307102]
[1756842542103,38.52,206.11,206.07,7.92502334]
[1756842542302,0.68,206.1,206.05,4.85307102]
[1756842542621,46.44502334,206.11,206.05,13.44809436]
[1756842542827,7.92502334,206.09,206.05,4.85307102]
[1756842543004,0.68,206.08,206.05,4.85307102]
[1756842543200,7.92502334,206.09,206.04,4.85342483]
[1756842543520,0.68,206.08,206.04,12.77844817]
[1756842544104,38.52,206.09,206.06,7.92502334]
[1756842544309,1200.06,206.13,206.08,7.92502334]
[1756842544507,1238.6,206.13,206.1,7.92502334]
[1756842544901,1200.74,206.13,206.1,7.92502334]
[1756842545498,1200.74,206.13,206.11,4.85177817]
[1756842546901,1200.06,206.13,206.12,8.59502334]
[1756842547636,1200.06,206.13,206.12,13.44656613]
[1756842549102,1142.68416005,206.13,206.12,5.52154279]
[1756842549306,1142.68416005,206.13,206.12,13.44656613]
[1756842549307,1083.45902549,206.13,206.12,13.44656613]
[1756842549497,1053.54500818,206.13,206.12,13.44656613]
[1756842549897,1023.4712703,206.13,206.12,13.44656613]
[1756842550099,989.16304261,206.13,206.12,13.44656613]
[1756842550326,835.84759486,206.13,206.12,21.37158947]
[1756842550510,802.80607664,206.13,206.12,21.37158947]
[1756842550899,770.11154324,206.13,206.12,21.37158947]
[1756842551121,615.16130922,206.13,206.12,35.39366819]
[1756842551333,579.04830051,206.13,206.12,35.39366819]
[1756842551502,541.98968348,206.13,206.12,35.39366819]
[1756842551906,498.82865372,206.13,206.12,55.39366819]
[1756842552102,294.37681282,206.13,206.12,55.39366819]
[1756842552336,192.29828007,206.13,206.12,55.39366819]
[1756842552513,187.44227502,206.13,206.12,55.39366819]
[1756842552713,187.44227502,206.13,206.12,94.01366819]
[1756842552918,130.52065811,206.13,206.12,94.01366819]
[1756842553113,0.72,206.3,206.16,13.59559401]
[1756842553301,38.6,206.33,206.23,26.0]
[1756842553502,0.72,206.32,206.27,7.92502334]
[1756842553840,51.37165088,206.33,206.23,26.0]
[1756842553841,47.26502334,206.31,206.25,7.92502334]
[1756842554045,0.72,206.3,206.25,7.92502334]
[1756842554333,0.72,206.29,206.25,7.92502334]
[1756842554506,0.72,206.28,206.24,7.92502334]
[1756842554711,0.72,206.27,206.25,7.92502334]
[1756842555027,0.72,206.26,206.25,7.92502334]
[1756842555202,0.72,206.26,206.23,12.773963]
[1756842555407,0.72,206.26,206.24,7.92502334]
[1756842555826,0.72,206.26,206.23,4.84893966]
[1756842556030,0.72,206.26,206.24,7.92502334]
[1756842556229,0.72,206.26,206.24,12.77364409]
[1756842556440,0.72,206.29,206.25,7.92502334]
[1756842556613,46.54502334,206.31,206.25,7.92502334]
[1756842556614,0.72,206.28,206.25,7.92502334]
[1756842556816,0.72,206.27,206.23,12.77392161]
[1756842558726,7.92502334,206.3,206.24,7.92502334]
[1756842558929,0.72,206.3,206.25,7.92502334]
[1756842559140,7.92502334,206.28,206.21,26.0]
[1756842559350,8.64502334,206.27,206.21,26.0]
[1756842559513,0.72,206.26,206.21,33.92502334]
[1756842560141,0.72,206.26,206.22,12.77421352]
[1756842560346,0.72,206.25,206.22,12.77421352]
[1756842561752,0.72,206.29,206.23,0.69]
[1756842561910,7.92502334,206.34,206.23,0.69]
[1756842562245,13.59559401,206.35,206.27,7.92502334]
[1756842562246,8.64502334,206.33,206.27,7.92502334]
[1756842562412,8.64502334,206.33,206.26,4.84824978]
[1756842562413,7.92502334,206.31,206.26,4.84824978]
[1756842562607,7.92502334,206.31,206.26,39.46327312]
[1756842562913,8.64502334,206.3,206.26,30.84824978]
[1756842563114,0.72,206.29,206.26,30.84824978]
[1756842563342,8.64502334,206.29,206.26,30.84824978]
[1756842563546,8.64502334,206.29,206.24,0.69]
[1756842563547,7.92502334,206.29,206.24,0.69]
[1756842563752,7.92502334,206.27,206.22,0.69]
[1756842564053,8.64502334,206.27,206.22,0.69]
[1756842564245,0.72,206.29,206.23,5.53895505]
[1756842564739,7.92502334,206.28,206.23,5.53895505]
[1756842564934,8.64502334,206.28,206.23,5.53895505]
[1756842565131,0.72,206.28,206.24,0.69]
[1756842565446,0.72,206.28,206.23,4.84895505]
[1756842565447,7.92502334,206.27,206.23,4.84895505]
[1756842565612,38.56,206.31,206.23,4.84895505]
[1756842565806,7.92502334,206.27,206.23,4.84895505]
[1756842566038,8.64502334,206.27,206.23,4.84895505]
[1756842566237,7.92502334,206.24,206.22,4.84919018]
[1756842566445,7.92502334,206.23,206.22,4.84919018]
[1756842566810,7.92502334,206.26,206.22,4.84919018]
[1756842567019,7.92502334,206.26,206.22,5.53919018]
[1756842567419,0.72,206.25,206.2,4.84966052]
[1756842567622,7.92502334,206.21,206.17,4.8503662]
[1756842567819,0.72,206.24,206.14,4.85107208]
[1756842568007,7.92502334,206.18,206.14,4.85107208]
[1756842568235,7.92502334,206.18,206.14,12.81768021]
[1756842568418,0.72,206.21,206.14,12.81768021]
[1756842568419,7.92502334,206.19,206.14,12.81768021]
[1756842568815,7.92502334,206.18,206.14,0.69]
[1756842569022,26.0,206.24,206.14,0.69]
[1756842569230,7.92502334,206.19,206.14,8.61502334]
[1756842569419,7.92502334,206.18,206.13,17.66957598]
[1756842569620,7.92502334,206.18,206.14,0.69]
[1756842570019,0.72,206.24,206.17,26.0]
[1756842570219,0.72,206.24,206.18,25.59048167]
[1756842570533,8.64502334,206.24,206.18,25.59048167]
[1756842571233,7.92502334,206.25,206.19,8.61502334]
[1756842572614,8.64502334,206.25,206.2,4.84966052]
[1756842572820,7.92502334,206.22,206.2,4.84966052]
[1756842573149,8.64502334,206.21,206.15,0.69]
[1756842573443,7.92502334,206.19,206.14,12.12710938]
[1756842573620,0.14216157,206.26,206.14,4.85107208]
[1756842573621,7.92502334,206.16,206.14,4.85107208]
[1756842574318,7.92502334,206.16,206.14,30.85107208]
[1756842574519,8.64502334,206.15,206.13,4.88127569]
[1756842574719,7.92502334,206.14,206.13,0.03]
[1756842575134,7.92502334,206.14,206.13,26.03]
[1756842575330,7.92502334,206.15,206.13,26.03]
[1756842575535,7.92502334,206.17,206.13,26.03]
[1756842575919,7.92502334,206.17,206.13,26.72]
[1756842576843,8.64502334,206.17,206.14,4.85107208]
[1756842577147,7.92502334,206.17,206.14,4.85107208]
[1756842577443,7.92502334,206.15,206.13,0.03]
[1756842577645,7.92502334,206.14,206.13,0.03]
[1756842577859,8.64502334,206.14,206.13,0.03]
[1756842578020,8.64502334,206.14,206.13,4.88130742]
[1756842578021,0.72,206.14,206.13,4.88130742]
[1756842578348,7.92502334,206.16,206.13,4.88130742]
[1756842578524,8.64502334,206.17,206.13,4.88130742]
[1756842578841,8.64502334,206.17,206.13,0.03]
[1756842579536,7.92502334,206.17,206.13,0.03]
[1756842579740,7.92502334,206.17,206.13,0.72]
[1756842579942,0.72,206.19,206.13,0.72]
[1756842580151,7.92502334,206.17,206.13,0.72]
[1756842580331,8.64502334,206.17,206.13,0.03]
[1756842580523,7.92502334,206.15,206.13,0.03]
[1756842580919,8.64502334,206.14,206.13,0.03]
[1756842582630,0.72,206.14,206.13,0.03]
[1756842582837,8.64502334,206.14,206.13,0.03]
[1756842583051,0.7,206.19,206.13,0.03]
[1756842583228,0.7,206.19,206.14,7.92502334]
[1756842583229,7.92502334,206.19,206.14,7.92502334]
[1756842583544,8.62502334,206.19,206.13,33.95502334]
[1756842583737,7.92502334,206.18,206.13,26.03]
[1756842583926,7.92502334,206.19,206.14,0.68]
[1756842584129,7.92502334,206.2,206.15,8.60502334]
[1756842584743,0.76,206.27,206.2,4.84966052]
[1756842584928,7.92502334,206.26,206.21,7.92502334]
[1756842585124,0.06,206.27,206.21,7.92502334]
[1756842585436,7.98502334,206.27,206.21,7.92502334]
[1756842585828,0.06,206.27,206.22,7.92502334]
[1756842586027,0.76,206.27,206.22,7.92502334]
[1756842586227,0.06,206.27,206.23,7.92502334]
[1756842586434,0.06,206.27,206.23,8.60502334]
[1756842586636,0.76,206.27,206.22,33.92502334]
[1756842586841,0.76,206.27,206.23,4.84895505]
[1756842587027,0.06,206.27,206.23,4.84895505]
[1756842587235,0.06,206.27,206.23,17.65134267]
[1756842587625,11.99602378,206.27,206.23,4.84895505]
[1756842587851,0.7,206.26,206.23,4.84895505]
[1756842588060,0.06,206.27,206.21,4.84928484]
[1756842588260,0.06,206.27,206.22,12.61602378]
[1756842588754,0.06,206.27,206.21,4.84928484]
[1756842588755,11.93602378,206.25,206.21,4.84928484]
[1756842589268,12.63602378,206.25,206.21,4.84928484]
[1756842589764,11.93602378,206.25,206.21,4.84928484]
[1756842589921,0.06,206.27,206.22,0.68]
[1756842590122,12.69602378,206.27,206.22,0.68]
[1756842590327,12.69602378,206.27,206.21,16.78530862]
[1756842590328,12.69602378,206.27,206.21,16.97284819]
[1756842590622,0.06,206.27,206.23,11.93602378]
[1756842590827,0.06,206.27,206.25,4.84848484]
[1756842592426,0.06,206.27,206.23,4.84895505]
[1756842592850,11.93602378,206.25,206.21,30.84921397]
[1756842593158,12.63602378,206.25,206.21,4.84921397]
[1756842593325,11.93602378,206.25,206.21,4.84921397]
[1756842595058,11.93602378,206.25,206.2,4.84966052]
[1756842595261,11.99602378,206.27,206.21,12.61602378]
[1756842595438,0.06,206.27,206.23,11.93602378]
[1756842595638,0.06,206.27,206.24,0.68]
[1756842596147,0.06,206.27,206.25,0.68]
[1756842596664,0.06,206.27,206.23,26.0]
[1756842596845,11.93602378,206.26,206.23,26.0]
[1756842597165,11.93602378,206.26,206.23,4.84875047]
[1756842597962,11.99602378,206.27,206.23,4.84875047]
[1756842598548,12.69602378,206.27,206.23,4.84875047]
[1756842598859,11.99602378,206.27,206.23,4.84875047]
[1756842599162,11.99602378,206.27,206.22,4.84919018]
[1756842599163,11.93602378,206.26,206.22,4.84919018]
[1756842599838,11.93602378,206.26,206.22,5.52919018]
[1756842600237,11.93602378,206.23,206.08,0.68]
[1756842600437,13.59559401,206.18,206.12,0.68]
[1756842600635,14.29559401,206.18,206.13,4.88129346]
[1756842600860,11.93602378,206.17,206.14,0.68]
[1756842601064,11.96602378,206.21,206.14,0.68]
[1756842601364,11.96602378,206.21,206.13,4.88129346]
[1756842601365,11.93602378,206.2,206.13,4.88129346]
[1756842601562,0.7,206.21,206.13,0.03]
[1756842601767,11.93602378,206.19,206.13,0.03]
[1756842602059,13.59559401,206.25,206.18,11.93602378]
[1756842602060,39.44,206.25,206.18,11.93602378]
[1756842602264,39.44,206.25,206.19,4.84989572]
[1756842602574,0.06,206.27,206.2,12.61602378]
[1756842602748,11.93602378,206.25,206.2,0.68]
[1756842602945,0.06,206.27,206.19,16.97463503]
[1756842603150,11.93602378,206.22,206.19,16.97463503]
[1756842603351,11.93602378,206.2,206.17,4.85014767]
[1756842603560,11.93602378,206.2,206.17,31.53014767]
[1756842603760,11.93602378,206.21,206.18,0.68]
[1756842604044,11.93602378,206.24,206.19,0.68]
[1756842604248,11.93602378,206.22,206.17,26.68]
[1756842604446,11.93602378,206.2,206.18,4.85013095]
[1756842604941,31.19236522,206.27,206.18,4.85013095]
[1756842604942,0.06,206.27,206.19,0.68]
[1756842605145,0.06,206.27,206.2,11.93602378]
[1756842605146,11.93602378,206.25,206.2,11.93602378]
[1756842605358,11.93602378,206.26,206.21,38.61602378]
[1756842605564,11.99602378,206.27,206.22,0.68]
[1756842605822,11.93602378,206.23,206.21,26.0]
[1756842605947,11.93602378,206.22,206.18,4.85013095]
[1756842606144,11.93602378,206.23,206.21,4.84934806]
[1756842606364,0.06,206.27,206.21,4.84934806]
[1756842606561,0.06,206.27,206.22,12.61602378]
[1756842607071,0.06,206.27,206.23,0.68]
[1756842607265,0.06,206.27,206.24,0.68]
[1756842607642,0.06,206.27,206.25,0.68]
[1756842608055,0.06,206.27,206.26,0.68]
[1756842608365,0.06,206.27,206.26,5.52824978]
[1756842608759,0.06,206.27,206.26,4.84824978]
[1756842609143,11.99602378,206.27,206.26,4.84824978]
[1756842609961,0.06,206.27,206.26,5.52824978]
[1756842610362,0.06,206.27,206.26,17.46427356]
[1756842610563,0.7,206.36,206.26,29.58489801]
[1756842610765,11.93602378,206.32,206.27,12.61602378]
[1756842610969,0.7,206.36,206.28,0.68]
[1756842611177,26.66,206.39,206.28,0.68]
[1756842611379,0.66,206.41,206.3,11.93602378]
[1756842611560,11.93602378,206.35,206.31,0.7]
[1756842611760,11.93602378,206.32,206.3,26.0]
[1756842612278,11.93602378,206.32,206.31,4.84707479]
[1756842612473,11.93602378,206.34,206.31,31.54707479]
[1756842613075,0.66,206.43,206.35,26.0]
[1756842613292,11.93602378,206.39,206.35,26.7]
[1756842613581,11.93602378,206.39,206.36,0.7]
[1756842613755,11.93602378,206.4,206.37,0.7]
[1756842613959,11.93602378,206.4,206.38,4.84543075]
[1756842614154,0.66,206.43,206.38,4.84543075]
[1756842614382,11.93602378,206.4,206.38,4.84543075]
[1756842615176,43.70309638,206.48,206.36,16.96065128]
[1756842615379,0.66,206.45,206.36,16.96065128]
[1756842615681,11.93602378,206.37,206.33,0.7]
[1756842616196,11.93602378,206.36,206.33,0.7]
[1756842616402,0.66,206.37,206.29,0.7]
[1756842616562,0.66,206.37,206.3,0.7]
[1756842616563,11.93602378,206.35,206.3,0.7]
[1756842616763,11.93602378,206.35,206.25,29.09090908]
[1756842616764,0.66,206.37,206.31,0.7]
[1756842617196,11.93602378,206.35,206.31,0.7]
[1756842617379,11.93602378,206.35,206.32,4.84683986]
[1756842617763,11.93602378,206.33,206.27,0.7]
[1756842618081,0.66,206.37,206.28,4.84777971]
[1756842618263,11.93602378,206.34,206.28,29.60325278]
[1756842618459,40.02207872,206.41,206.28,28.90325278]
[1756842618666,11.93602378,206.36,206.3,11.93602378]
[1756842618866,11.93602378,206.36,206.31,0.7]
[1756842619066,11.93602378,206.36,206.3,11.93602378]
[1756842619067,11.93602378,206.36,206.32,0.7]
[1756842619269,39.87991715,206.46,206.33,0.7]
[1756842619477,11.93602378,206.4,206.34,28.89831901]
[1756842619667,11.93602378,206.4,206.35,0.7]
[1756842619882,11.93602378,206.4,206.36,0.7]
[1756842620798,11.93602378,206.41,206.37,0.7]
[1756842621184,43.70324309,206.48,206.37,0.7]
[1756842621185,0.66,206.46,206.38,0.7]
[1756842621502,11.93602378,206.43,206.39,4.84519598]
[1756842622811,0.66,206.45,206.39,16.95818595]
[1756842622986,11.93602378,206.43,206.39,17.65818595]
[1756842623177,11.93602378,206.43,206.39,4.84519598]
[1756842623370,11.93602378,206.43,206.38,4.84543075]
[1756842623572,11.93602378,206.44,206.39,0.7]
[1756842623782,11.93602378,206.43,206.39,0.7]
[1756842625478,11.93602378,206.43,206.4,4.84496124]
[1756842625677,11.93602378,206.42,206.4,4.84496124]
[1756842625898,12.59602378,206.41,206.38,4.84520636]
[1756842626099,11.93602378,206.39,206.32,0.7]
[1756842626289,11.93602378,206.34,206.33,4.84660495]
[1756842626676,12.59602378,206.34,206.29,0.7]
[1756842626996,11.93602378,206.3,206.27,4.87801473]
[1756842627305,11.93602378,206.29,206.27,4.87801473]
[1756842627682,11.93602378,206.36,206.27,4.87801473]
[1756842627683,12.59602378,206.28,206.27,0.03]
[1756842627896,11.93602378,206.28,206.27,0.03]
[1756842628096,12.59602378,206.28,206.27,0.03]
[1756842629411,11.93602378,206.28,206.27,0.03]
[1756842629789,12.59602378,206.28,206.27,0.03]
[1756842631682,17.44380349,206.28,206.27,0.03]
[1756842631883,31.46588221,206.28,206.27,0.03]
[1756842632888,11.93602378,206.19,206.18,0.03]
[1756842633409,12.59602378,206.19,206.18,0.03]
[1756842634495,17.4459195,206.19,206.18,0.03]
[1756842634806,12.59602378,206.19,206.18,0.03]
[1756842635706,11.93602378,206.19,206.18,0.03]
[1756842636398,0.66,206.21,206.18,0.03]
[1756842636710,11.93602378,206.21,206.18,0.73]
[1756842637086,11.93602378,206.19,206.18,0.03]
[1756842637287,11.93602378,206.2,206.18,0.03]
[1756842637592,11.93602378,206.19,206.18,0.03]
[1756842637786,11.93602378,206.22,206.18,0.73]
[1756842638206,11.93602378,206.22,206.19,0.7]
[1756842638409,11.93602378,206.2,206.18,0.03]
[1756842638613,12.59602378,206.19,206.18,0.03]
[1756842639299,11.93602378,206.19,206.18,0.03]
[1756842640009,12.59602378,206.19,206.18,0.03]
[1756842640508,17.4459195,206.19,206.18,0.03]
[1756842640710,12.59602378,206.19,206.18,0.03]
[1756842641308,12.64602378,206.19,206.18,0.03]
[1756842642189,11.93602378,206.19,206.18,0.03]
[1756842642594,12.64602378,206.19,206.18,0.03]
[1756842643336,26.52594093,206.19,206.18,0.03]
[1756842643517,26.6681025,206.19,206.18,0.03]
[1756842643690,31.51799822,206.19,206.18,0.03]
[1756842643990,26.6681025,206.19,206.18,0.03]
[1756842644915,38.84,206.19,206.18,0.03]
[1756842645137,0.71,206.23,206.18,0.03]
[1756842645300,11.93602378,206.2,206.18,0.71]
[1756842645925,11.93602378,206.2,206.19,5.52989572]
[1756842646127,52.47559401,206.25,206.18,0.03]
[1756842646423,12.64602378,206.19,206.18,0.03]
[1756842646607,11.93602378,206.19,206.18,0.03]
[1756842647510,12.64602378,206.19,206.18,0.03]
[1756842647721,26.52594093,206.19,206.18,0.03]
[1756842648414,26.6681025,206.19,206.18,0.03]
[1756842649522,27.50345842,206.19,206.18,0.03]
[1756842651433,61.5135627,206.19,206.18,0.03]
[1756842652221,66.36345842,206.19,206.18,0.03]
[1756842653101,38.84,206.19,206.18,0.03]
[1756842653325,46.76148398,206.19,206.18,0.03]
[1756842654528,26.28432314,206.22,206.18,0.03]
[1756842654695,7.92148398,206.19,206.18,0.03]
[1756842658342,27.50345842,206.19,206.18,0.03]
[1756842658707,61.35140113,206.19,206.18,0.03]
[1756842660020,22.51140113,206.19,206.18,0.03]
[1756842660216,61.5135627,206.19,206.18,0.03]
[1756842661318,21.9435627,206.19,206.18,0.03]
[1756842661529,60.7835627,206.19,206.18,0.03]
[1756842661718,38.82,206.19,206.18,0.03]
[1756842662032,46.74148398,206.19,206.18,0.03]
[1756842662230,61.33140113,206.19,206.18,0.03]
[1756842662529,46.74148398,206.19,206.18,0.03]
[1756842663206,7.92148398,206.19,206.18,0.71]
[1756842663623,7.92148398,206.19,206.18,0.03]
[1756842664037,7.92148398,206.19,206.18,0.71]
[1756842664826,7.92148398,206.19,206.18,0.03]
[1756842665030,7.92148398,206.2,206.18,0.71]
[1756842665216,7.92148398,206.21,206.18,0.71]
[1756842665526,7.92148398,206.2,206.18,0.71]
[1756842665853,7.92148398,206.21,206.19,0.68]
[1756842666008,7.92148398,206.2,206.19,5.52983379]
[1756842666209,7.92148398,206.2,206.18,4.88012666]
[1756842666532,7.92148398,206.2,206.19,0.68]
[1756842667409,7.92148398,206.21,206.19,0.68]
[1756842667632,7.92148398,206.26,206.2,7.92148398]
[1756842667929,7.92148398,206.26,206.22,4.84919018]
[1756842668233,7.92148398,206.23,206.2,5.52966052]
[1756842668412,7.92148398,206.23,206.21,0.68]
[1756842668733,7.92148398,206.24,206.21,0.68]
[1756842668931,7.92148398,206.24,206.2,4.84966052]
[1756842669132,0.71,206.26,206.2,4.84966052]
[1756842669331,0.99432314,206.26,206.2,4.84966052]
[1756842669713,7.92148398,206.24,206.21,0.68]
[1756842669911,46.70148398,206.24,206.21,0.68]
[1756842670111,46.70148398,206.24,206.21,5.52934631]
[1756842670321,46.70148398,206.24,206.22,0.68]
[1756842670528,38.78,206.24,206.22,0.68]
[1756842670736,46.70148398,206.24,206.22,0.68]
[1756842670937,7.92148398,206.23,206.18,26.03]
[1756842671118,7.92148398,206.2,206.19,4.84983658]
[1756842671513,7.92148398,206.2,206.18,4.88012822]
[1756842671934,0.7,206.2,206.18,0.03]
[1756842672122,38.8,206.21,206.18,0.03]
[1756842672123,7.92148398,206.19,206.18,0.03]
[1756842673033,38.8,206.21,206.18,0.03]
[1756842673234,7.92148398,206.19,206.18,0.03]
[1756842673637,22.6435627,206.19,206.18,0.03]
[1756842674150,27.49345842,206.19,206.18,0.03]
[1756842674332,19.57197444,206.19,206.18,0.03]
[1756842674518,27.49345842,206.19,206.18,0.03]
[1756842675255,35.4149424,206.19,206.18,0.03]
[1756842675616,35.4149424,206.19,206.15,0.03]
[1756842675617,39.59559401,206.16,206.15,0.03]
[1756842675821,94.34072354,206.16,206.15,0.03]
[1756842676043,95.04072354,206.16,206.15,0.03]
[1756842676340,61.41564815,206.16,206.15,0.03]
[1756842676523,0.14216157,206.14,206.13,0.03]
[1756842676721,0.14216157,206.14,206.1,0.03]
[1756842676722,13.59559401,206.13,206.1,0.03]
[1756842677032,21.65923956,206.11,206.1,0.03]
[1756842677542,22.35923956,206.11,206.1,0.03]
[1756842677744,61.11923956,206.11,206.1,0.03]
[1756842678122,61.4035627,206.11,206.1,0.03]
[1756842678321,66.25534087,206.11,206.1,0.03]
[1756842678522,61.4035627,206.11,206.1,0.03]
[1756842678718,66.25534087,206.11,206.1,0.03]
[1756842679341,22.6435627,206.11,206.1,0.03]
[1756842679543,60.6835627,206.11,206.1,0.03]
[1756842679722,60.54140113,206.11,206.1,0.03]
[1756842680941,13.87991715,206.1,206.06,0.1]
[1756842681241,21.9435627,206.07,206.06,0.1]
[1756842681420,60.6835627,206.07,206.06,0.1]
[1756842681621,69.30504668,206.07,206.06,0.1]
[1756842681927,95.30504668,206.07,206.06,0.1]
[1756842682241,95.32504668,206.07,206.06,0.1]
[1756842682435,0.14216157,206.05,206.0,0.03]
[1756842682744,7.92148398,206.01,206.0,0.03]
[1756842684438,7.92148398,206.01,206.0,0.73]
[1756842684622,7.92148398,206.01,206.0,5.58436893]
[1756842684824,46.64148398,206.02,206.0,5.58436893]
[1756842685030,38.72,206.04,206.01,0.7]
[1756842685849,13.87991715,206.03,206.0,0.03]
[1756842686043,38.72,206.03,206.01,0.7]
[1756842686350,7.92148398,206.02,206.0,4.88430738]
[1756842686833,7.92148398,206.02,206.01,0.7]
[1756842688025,7.92148398,206.02,206.01,5.55413329]
[1756842688223,7.92148398,206.02,206.0,4.88429637]
[1756842688524,47.32148398,206.01,206.0,0.03]
[1756842688725,46.62148398,206.01,206.0,0.03]
[1756842688945,7.92148398,206.01,206.0,0.03]
[1756842689131,60.21707799,206.01,206.0,0.03]
[1756842689448,61.3435627,206.01,206.0,0.03]
[1756842691640,63.28970326,206.01,206.0,0.03]
[1756842692624,24.58970326,206.01,206.0,0.03]
[1756842692838,63.26970326,206.01,206.0,0.03]
[1756842693446,23.74754169,206.01,206.0,0.03]
[1756842693650,21.51707799,206.01,206.0,0.03]
[1756842693829,60.17707799,206.01,206.0,0.03]
[1756842695355,21.51707799,206.03,206.0,0.73]
[1756842695652,21.51707799,206.03,206.01,0.7]
[1756842695653,60.17707799,206.03,206.01,0.7]
[1756842695867,60.17707799,206.03,206.02,0.7]
[1756842695868,38.66,206.03,206.02,0.7]
[1756842696153,46.58148398,206.03,206.02,0.7]
[1756842696462,13.59559401,206.02,206.0,0.03]
[1756842696625,7.92148398,206.01,206.0,0.03]
[1756842696829,7.92148398,206.04,206.01,0.7]
[1756842697030,133.4,206.08,206.02,0.7]
[1756842697255,7.92148398,206.06,206.02,0.7]
[1756842697556,7.92148398,206.06,206.0,7.95148398]
[1756842697557,38.66,206.05,206.03,0.7]
[1756842697859,38.68,206.05,206.04,0.7]
[1756842698637,38.68,206.05,206.04,5.55342651]
[1756842700234,38.68,206.05,206.0,0.03]
[1756842700235,13.59559401,206.04,206.0,0.03]
[1756842700461,7.92148398,206.02,206.0,0.03]
[1756842700646,38.64,206.03,206.0,0.73]
[1756842700838,7.92148398,206.02,206.01,0.7]